fUSD/lending_fUSD_20250623
["ID","MTS","AMOUNT","RATE_DAILY","PERIOD"]
[367082714,1750651871066,-1812.9,0.0003315,7]
[367082715,1750651871075,-490.0,0.0003315,2]
[367082716,1750651871084,-490.0,0.0003315,7]
[367082717,1750651871093,-7117.05,0.0003315,7]
[367082718,1750651871104,-1897.17,0.0003315,7]
[367082719,1750651871113,-1830.59,0.0003315,7]
[367082720,1750651871123,-490.0,0.0003315,7]
[367082721,1750651871132,-2294.38,0.0003315,7]
[367082722,1750651871142,-18976.8640922,0.0003315,2]
[367082723,1750651871152,-490.0,0.0003315,7]
[367082724,1750651871162,-1860.18,0.0003315,7]
[367082725,1750651871171,-490.0,0.0003315,7]
[367082726,1750651871181,-1748.17,0.0003315,7]
[367082727,1750651871190,-5117.31,0.0003315,7]
[367082728,1750651871200,-490.0,0.0003315,7]
[367082729,1750651871210,-811.89,0.0003315,7]
[367082730,1750651871219,-1062.01,0.0003315,7]
[367082731,1750651871229,-2783.7,0.0003315,7]
[367082732,1750651871238,-1799.01,0.0003315,7]
[367082733,1750651871247,-490.0,0.0003315,7]
[367082734,1750651871256,-490.0,0.0003315,7]
[367082735,1750651871266,-490.0,0.0003315,7]
[367082736,1750651871276,-1825.18,0.0003315,7]
[367082737,1750651871285,-490.0,0.0003315,7]
[367082738,1750651871294,-508.00948786,0.0003315,7]
[367082739,1750651871304,-490.0,0.0003315,7]
[367082740,1750651871314,-1867.21,0.0003315,7]
[367082741,1750651871323,-10042.91,0.0003315,7]
[367082742,1750651871333,-490.0,0.0003315,7]
[367082743,1750651871342,-490.0,0.0003315,7]
[367082744,1750651871351,-490.0,0.0003315,7]
[367082745,1750651871360,-3359.6,0.0003315,7]
[367082746,1750651871370,-673.3,0.0003315,7]
[367082747,1750651871379,-490.0,0.0003315,7]
[367082748,1750651871388,-490.0,0.0003315,7]
[367082749,1750651871398,-859.43,0.0003315,7]
[367082750,1750651871407,-1623.97,0.0003315,7]
[367082751,1750651871416,-3581.54,0.0003315,7]
[367082752,1750651871426,-490.0,0.0003315,7]
[367082753,1750651871435,-651.37,0.0003315,7]
[367082754,1750651871444,-4081.92,0.0003315,7]
[367082755,1750651871454,-490.0,0.0003315,7]
[367082756,1750651871463,-6142.79,0.0003315,7]
[367082757,1750651871472,-490.0,0.0003315,7]
[367082758,1750651871481,-1925.72,0.0003315,7]
[367082759,1750651871491,-490.0,0.0003315,7]
[367082760,1750651871500,-1766.36,0.0003315,7]
[367082761,1750651871509,-490.0,0.0003315,7]
[367082762,1750651871518,-1935.47,0.0003315,7]
[367082763,1750651871528,-153.91105767,0.0003315,7]
[367082764,1750651871537,-5691.77,0.0003315,7]
[367082765,1750651871547,-490.0,0.0003315,7]
[367082766,1750651871557,-490.0,0.0003315,7]
[367082767,1750651871567,-2227.47,0.0003315,7]
[367082768,1750651871578,-490.0,0.0003315,7]
[367082769,1750651871588,-581.06,0.0003315,7]
[367082770,1750651871597,-490.0,0.0003315,7]
[367082771,1750651871606,-2111.75,0.0003315,7]
[367082772,1750651871615,-3603.18,0.0003315,7]
[367082773,1750651871625,-490.0,0.0003315,7]
[367082774,1750651871634,-490.0,0.0003315,7]
[367082775,1750651871644,-328.54,0.0003315,7]
[367082776,1750651871653,-490.0,0.0003315,7]
[367082777,1750651871663,-490.0,0.0003315,7]
[367082778,1750651871672,-1221.8,0.0003315,7]
[367082779,1750651871681,-914.86,0.0003315,7]
[367082780,1750651871691,-812.95,0.0003315,7]
[367082781,1750651871700,-490.0,0.0003315,7]
[367082782,1750651871710,-490.0,0.0003315,7]
[367082783,1750651871719,-1685.75,0.0003315,7]
[367082784,1750651871729,-490.0,0.0003315,7]
[367082785,1750651871738,-490.0,0.0003315,7]
[367082786,1750651871748,-816.99,0.0003315,7]
[367082787,1750651871757,-1588.11,0.0003315,7]
[367082788,1750651871766,-7811.75,0.0003315,7]
[367082789,1750651871775,-490.0,0.0003315,7]
[367082790,1750651871784,-490.0,0.0003315,7]
[367082791,1750651871793,-200.0,0.0003315,2]
[367082792,1750651871802,-1760.98,0.0003315,7]
[367082793,1750651871812,-510.45,0.0003315,7]
[367082794,1750651871822,-490.0,0.0003315,7]
[367082795,1750651871831,-480.0,0.0003315,7]
[367082796,1750651871840,-490.0,0.0003315,7]
[367082797,1750651871850,-274.920312,0.0003315,7]
[367082798,1750651871859,-490.0,0.0003315,7]
[367082799,1750651871869,-3293.31,0.0003315,7]
[367082800,1750651871878,-2208.73,0.0003315,7]
[367082801,1750651871887,-150.0,0.0003315,7]
[367082802,1750651871896,-1923.63,0.0003315,7]
[367082803,1750651871905,-844.74,0.0003315,7]
[367082804,1750651871914,-389.37907026,0.0003315,7]
[367082805,1750651871923,-1717.67,0.0003315,7]
[367082806,1750651871932,-490.0,0.0003315,7]
[367082807,1750651871941,-1500.04,0.0003315,7]
[367082808,1750651871950,-559.87,0.0003315,7]
[367082809,1750651871960,-500.0,0.0003315,7]
[367082810,1750651871969,-490.0,0.0003315,7]
[367082811,1750651871977,-490.0,0.0003315,7]
[367082812,1750651871987,-490.0,0.0003315,7]
[367082813,1750651871996,-1386.66,0.0003315,7]
[367082814,1750651872005,-687.72,0.0003315,7]
[367082815,1750651872014,-490.0,0.0003315,7]
[367082816,1750651872023,-490.0,0.0003315,7]
[367082817,1750651872032,-490.0,0.0003315,7]
[367082818,1750651872042,-2004.11,0.0003315,7]
[367082819,1750651872051,-3235.4,0.0003315,7]
[367082820,1750651872063,-1162.79,0.0003315,7]
[367082821,1750651872072,-151.0,0.0003315,7]
[367082822,1750651872081,-1134.9,0.0003315,7]
[367082823,1750651872091,-151.0,0.0003315,7]
[367082824,1750651872101,-151.0,0.0003315,7]
[367082825,1750651872110,-1902.82,0.0003315,7]
[367082826,1750651872120,-490.0,0.0003315,7]
[367082827,1750651872130,-151.0,0.0003315,7]
[367082828,1750651872140,-151.0,0.0003315,7]
[367082829,1750651872151,-1200.0,0.0003315,7]
[367082830,1750651872161,-151.0,0.0003315,7]
[367082831,1750651872171,-490.0,0.0003315,7]
[367082832,1750651872183,-1196.0,0.0003315,7]
[367082833,1750651872193,-151.0,0.0003315,7]
[367082834,1750651872203,-151.0,0.0003315,7]
[367082835,1750651872213,-151.0,0.0003315,7]
[367082836,1750651872223,-151.0,0.0003315,7]
[367082837,1750651872232,-490.0,0.0003315,7]
[367082838,1750651872241,-151.0,0.0003315,7]
[367082839,1750651872250,-151.0,0.0003315,7]
[367082840,1750651872260,-490.0,0.0003315,7]
[367082841,1750651872269,-151.0,0.0003315,7]
[367082842,1750651872278,-156.566577,0.0003315,7]
[367082843,1750651872288,-151.0,0.0003315,7]
[367082844,1750651872297,-154.0,0.0003315,7]
[367082845,1750651872306,-151.0,0.0003315,7]
[367082846,1750651872315,-154.0,0.0003315,7]
[367082847,1750651872324,-151.0,0.0003315,7]
[367082848,1750651872333,-154.0,0.0003315,7]
[367082849,1750651872343,-730.24,0.0003315,7]
[367082850,1750651872353,-911.13,0.0003315,7]
[367082851,1750651872362,-151.0,0.0003315,7]
[367082852,1750651872372,-154.0,0.0003315,7]
[367082853,1750651872381,-1813.5,0.0003315,7]
[367082854,1750651872390,-151.0,0.0003315,7]
[367082855,1750651872400,-490.0,0.0003315,7]
[367082856,1750651872409,-154.0,0.0003315,7]
[367082857,1750651872418,-490.0,0.0003315,7]
[367082858,1750651872427,-1589.43,0.0003315,7]
[367082859,1750651872438,-151.0,0.0003315,7]
[367082860,1750651872447,-2873.68,0.0003315,7]
[367082861,1750651872457,-154.0,0.0003315,7]
[367082862,1750651872467,-151.0,0.0003315,7]
[367082863,1750651872477,-154.0,0.0003315,7]
[367082864,1750651872487,-151.0,0.0003315,7]
[367082865,1750651872496,-154.0,0.0003315,7]
[367082866,1750651872506,-151.0,0.0003315,7]
[367082867,1750651872516,-154.0,0.0003315,7]
[367082868,1750651872526,-490.0,0.0003315,7]
[367082869,1750651872536,-658.7,0.0003315,7]
[367082870,1750651872546,-153.81368887,0.0003315,7]
[367082871,1750651872556,-155.93888828,0.0003315,7]
[367082872,1750651872565,-510.91823709,0.0003315,7]
[367082873,1750651872575,-490.0,0.0003315,7]
[367082874,1750651872585,-490.0,0.0003315,7]
[367082875,1750651872595,-902.62,0.0003315,7]
[367082876,1750651872605,-4693.52,0.0003315,7]
[367082877,1750651872614,-490.0,0.0003315,7]
[367082878,1750651872624,-1291.3,0.0003315,7]
[367082879,1750651872634,-166.0,0.0003315,7]
[367082880,1750651872644,-4132.69,0.0003315,7]
[367082881,1750651872653,-490.0,0.0003315,7]
[367082882,1750651872663,-901.29,0.0003315,7]
[367082883,1750651872672,-993.64,0.0003315,7]
[367082884,1750651872682,-1151.59,0.0003315,2]
[367082885,1750651872692,-226.09127831,0.0003315,7]
[367082886,1750651872701,-490.0,0.0003315,7]
[367082887,1750651872711,-490.0,0.0003315,7]
[367082888,1750651872721,-490.0,0.0003315,7]
[367082889,1750651872731,-712.25,0.0003315,7]
[367082890,1750651872741,-1490.22,0.0003315,7]
[367082891,1750651872750,-722.74,0.0003315,7]
[367082892,1750651872759,-490.0,0.0003315,7]
[367082893,1750651872769,-490.0,0.0003315,7]
[367082894,1750651872778,-490.0,0.0003315,7]
[367082895,1750651872788,-490.0,0.0003315,7]
[367082896,1750651872797,-463.26,0.00033151,2]
[367082897,1750651872807,-151.06,0.00033151,2]
[367082898,1750651872816,-360.83,0.00033151,2]
[367082899,1750651872826,-2331.54,0.00033151,2]
[367082900,1750651872836,-301.2,0.00033151,2]
[367082901,1750651872845,-571.26,0.00033154,7]
[367082902,1750651872855,-500.0,0.00033154,7]
[367082903,1750651872864,-151.0,0.00033155,7]
[367082904,1750651872874,-151.0,0.00033155,7]
[367082905,1750651872884,-500.0,0.00033173,5]
[367082906,1750651872894,-500.0,0.00033173,2]
[367082907,1750651872904,-500.0,0.00033173,5]
[367082908,1750651872914,-500.0,0.00033173,5]
[367082909,1750651872923,-500.0,0.00033173,5]
[367082910,1750651872933,-500.0,0.00033173,5]
[367082911,1750651872943,-500.0,0.00033173,5]
[367082912,1750651872953,-500.0,0.00033177,7]
[367082913,1750651872962,-176.77402393,0.00033177,7]
[367082914,1750651872972,-500.0,0.00033177,7]
[367082915,1750651872982,-209.7981424,0.00033192,7]
[367082916,1750651872991,-166.0,0.00033192,7]
[367082917,1750651873000,-586.82798737,0.00033192,7]
[367082918,1750651873010,-2643.09893881,0.000332,2]
[367082919,1750651873019,-2470.66,0.000332,5]
[367082920,1750651873029,-500.0,0.00033205,7]
[367082921,1750651873039,-500.0,0.00033205,7]
[367082922,1750651873048,-150.5,0.00033205,120]
[367082923,1750651873062,-150.5,0.00033205,120]
[367082924,1750651873071,-1024.9,0.00033214,7]
[367082925,1750651873081,-150.5,0.00033215,120]
[367082926,1750651873091,-150.5,0.00033215,120]
[367082927,1750651873101,-654.69,0.00033224,2]
[367082928,1750651873111,-500.0,0.00033224,7]
[367082929,1750651873121,-500.0,0.00033224,7]
[367082930,1750651873131,-500.0,0.00033224,7]
[367082931,1750651873141,-500.0,0.00033224,7]
[367082932,1750651873152,-1024.9,0.00033224,7]
[367082933,1750651873161,-500.0,0.00033224,7]
[367082934,1750651873171,-500.0,0.00033224,7]
[367082935,1750651873181,-167.0,0.00033226,30]
[367082936,1750651873191,-2420.52373217,0.00033228,2]
[367082937,1750651873200,-500.0,0.00033232,7]
[367082938,1750651873210,-500.0,0.00033232,7]
[367082939,1750651873220,-1000.0,0.00033234,2]
[367082940,1750651873230,-1000.0,0.00033234,2]
[367082941,1750651873239,-1000.0,0.00033234,2]
[367082942,1750651873249,-1000.0,0.00033234,2]
[367082943,1750651873259,-1000.0,0.00033234,2]
[367082944,1750651873269,-1000.0,0.00033234,2]
[367082945,1750651873278,-1000.0,0.00033234,2]
[367082946,1750651873288,-1000.0,0.00033234,2]
[367082947,1750651873298,-1005.05292866,0.00033234,2]
[367082948,1750651873309,-426.42331311,0.0003324,15]
[367082949,1750651873318,-500.0,0.0003326,7]
[367082950,1750651873328,-500.0,0.0003326,7]
[367082951,1750651873338,-223.47399523,0.0003326,30]
[367082952,1750651873347,-2643.09893881,0.00033262,2]
[367082953,1750651873357,-202.64,0.00033283,2]
[367082954,1750651873367,-500.0,0.00033287,7]
[367082955,1750651873376,-500.0,0.00033287,7]
[367082956,1750651873387,-500.0,0.00033314,7]
[367082957,1750651873396,-500.0,0.00033314,7]
[367082958,1750651873406,-150.0,0.00033317,2]
[367082959,1750651873416,-162.49570099,0.00033317,2]
[367082960,1750651873425,-2420.52373217,0.0003332,2]
[367082961,1750651873435,-500.0,0.00033321,7]
[367082962,1750651873445,-250.10511797,0.00033324,5]
[367082963,1750651873455,-2643.09893881,0.00033324,2]
[367082964,1750651873464,-151.0,0.00033339,7]
[367082965,1750651873474,-1024.9,0.0003334,7]
[367082966,1750651873484,-498.30915342,0.00033342,7]
[367082967,1750651873494,-500.0,0.00033342,7]
[367082968,1750651873505,-500.0,0.00033349,7]
[367082969,1750651873515,-151.0,0.0003335,7]
[367082970,1750651873526,-500.0,0.00033369,7]
[367082971,1750651873536,-500.0,0.00033397,7]
[367082972,1750651873546,-223.47399523,0.00033397,30]
[367082973,1750651873557,-1144.0,0.000334,7]
[367082974,1750651873567,-2470.66,0.000334,5]
[367082975,1750651873577,-1024.9,0.00033404,7]
[367082976,1750651873588,-2420.52373217,0.00033412,2]
[367082977,1750651873597,-500.0,0.00033419,7]
[367082978,1750651873607,-502.14922806,0.00033421,5]
[367082979,1750651873617,-426.86081942,0.00033421,5]
[367082980,1750651873627,-151.54174679,0.00033421,5]
[367082981,1750651873637,-514.10898441,0.00033421,5]
[367082982,1750651873647,-502.50845171,0.00033421,5]
[367082983,1750651873657,-508.01195006,0.00033421,5]
[367082984,1750651873667,-826.97,0.00033422,7]
[367082985,1750651873677,-571.26,0.00033422,7]
[367082986,1750651873687,-500.0,0.00033422,7]
[367082987,1750651873696,-500.0,0.00033423,7]
[367082988,1750651873706,-500.0,0.00033423,7]
[367082989,1750651873716,-300.0,0.00033423,10]
[367082990,1750651873726,-654.69,0.00033423,2]
[367082991,1750651873736,-654.69,0.00033423,2]
[367082992,1750651873745,-500.0,0.00033423,7]
[367082993,1750651873755,-500.0,0.00033423,7]
[367082994,1750651873765,-500.0,0.00033423,7]
[367082995,1750651873775,-500.0,0.00033423,7]
[367082996,1750651873785,-500.0,0.00033423,7]
[367082997,1750651873795,-632.61746242,0.00033423,7]
[367082998,1750651873806,-826.97,0.00033423,7]
[367082999,1750651873816,-826.97,0.00033423,7]
[367083000,1750651873826,-826.97,0.00033423,7]
[367083001,1750651873836,-826.97,0.00033423,7]
[367083002,1750651873846,-826.97,0.00033423,7]
[367083003,1750651873856,-826.97,0.00033423,7]
[367083004,1750651873866,-827.16,0.00033423,7]
[367083005,1750651873875,-571.26,0.00033423,7]
[367083006,1750651873886,-571.26,0.00033423,7]
[367083007,1750651873895,-500.0,0.00033423,7]
[367083008,1750651873905,-571.26,0.00033423,7]
[367083009,1750651873915,-571.26,0.00033423,7]
[367083010,1750651873925,-500.0,0.00033423,7]
[367083011,1750651873934,-500.0,0.00033423,7]
[367083012,1750651873944,-500.0,0.00033423,7]
[367083013,1750651873954,-490.0,0.00033423,7]
[367083014,1750651873963,-11195.34,0.00033423,7]
[367083015,1750651873973,-2231.51,0.00033423,7]
[367083016,1750651873983,-302.1325839,0.00033423,7]
[367083017,1750651873993,-1833.12,0.00033423,7]
[367083018,1750651874003,-594.02,0.00033423,7]
[367083019,1750651874013,-563.26,0.00033423,7]
[367083020,1750651874022,-300.0,0.00033423,10]
[367083021,1750651874032,-15822.78,0.00033423,7]
[367083022,1750651874042,-1916.86,0.00033423,7]
[367083023,1750651874052,-1974.2,0.00033423,7]
[367083024,1750651874065,-500.0,0.00033423,7]
[367083025,1750651874075,-500.0,0.00033423,7]
[367083026,1750651874084,-1544.69,0.00033423,7]
[367083027,1750651874095,-300.0,0.00033423,10]
[367083028,1750651874104,-3124.09,0.00033423,7]
[367083029,1750651874114,-1982.24,0.00033423,7]
[367083030,1750651874124,-233.06058198,0.00033423,15]
[367083031,1750651874133,-500.0,0.00033424,7]
[367083032,1750651874144,-490.0,0.00033424,7]
[367083033,1750651874154,-490.0,0.00033424,7]
[367083034,1750651874163,-353.74687408,0.00033424,7]
[367083035,1750651874173,-490.0,0.00033424,7]
[367083036,1750651874183,-1133.14,0.00033424,7]
[367083037,1750651874192,-490.0,0.00033424,7]
[367083038,1750651874202,-496.5,0.00033424,7]
[367083039,1750651874212,-909.81,0.00033424,7]
[367083040,1750651874222,-490.0,0.00033424,7]
[367083041,1750651874231,-490.0,0.00033424,7]
[367083042,1750651874241,-871.45,0.00033424,7]
[367083043,1750651874250,-362.59610965,0.00033424,7]
[367083044,1750651874260,-490.0,0.00033424,7]
[367083045,1750651874270,-529.94,0.00033424,7]
[367083046,1750651874280,-490.0,0.00033424,7]
[367083047,1750651874290,-490.0,0.00033424,7]
[367083048,1750651874300,-490.42463085,0.00033424,5]
[367083049,1750651874310,-490.0,0.00033424,7]
[367083050,1750651874319,-490.0,0.00033424,7]
[367083051,1750651874329,-1064.69,0.00033424,7]
[367083052,1750651874339,-233.37205505,0.00033424,7]
[367083053,1750651874349,-658.11,0.00033424,7]
[367083054,1750651874359,-363.49631869,0.00033424,7]
[367083055,1750651874368,-490.0,0.00033424,7]
[367083056,1750651874379,-490.0,0.00033424,7]
[367083057,1750651874389,-490.0,0.00033424,7]
[367083058,1750651874399,-221.15763724,0.00033424,7]
[367083059,1750651874409,-355.50919207,0.00033424,7]
[367083060,1750651874419,-151.0,0.00033424,7]
[367083061,1750651874430,-151.0,0.00033424,7]
[367083062,1750651874440,-151.0,0.00033424,7]
[367083063,1750651874449,-500.03412592,0.00033424,7]
[367083064,1750651874460,-490.0,0.00033424,7]
[367083065,1750651874470,-497.3195658,0.00033424,7]
[367083066,1750651874480,-490.0,0.00033424,7]
[367083067,1750651874490,-490.0,0.00033424,7]
[367083068,1750651874500,-899.86,0.00033424,7]
[367083069,1750651874510,-490.0,0.00033424,7]
[367083070,1750651874519,-490.0,0.00033424,7]
[367083071,1750651874529,-497.04396212,0.00033424,7]
[367083072,1750651874539,-490.0,0.00033424,7]
[367083073,1750651874787,-820.57,0.00033424,7]
[367083074,1750651874837,-490.0,0.00033424,7]
[367083075,1750651874847,-621.39,0.00033424,7]
[367083076,1750651874856,-1475.87,0.00033424,7]
[367083077,1750651874866,-953.96,0.00033424,7]
[367083078,1750651874875,-874.73,0.00033424,7]
[367083079,1750651874885,-490.0,0.00033424,7]
[367083080,1750651874894,-490.0,0.00033424,7]
[367083081,1750651874903,-490.0,0.00033424,7]
[367083082,1750651874913,-490.0,0.00033424,7]
[367083083,1750651874922,-791.2,0.00033424,7]
[367083084,1750651874931,-490.0,0.00033424,7]
[367083085,1750651874941,-490.0,0.00033424,7]
[367083086,1750651874950,-490.0,0.00033424,7]
[367083087,1750651874959,-490.0,0.00033424,7]
[367083088,1750651874968,-490.0,0.00033424,7]
[367083089,1750651874978,-490.0,0.00033424,7]
[367083090,1750651874989,-490.06,0.00033424,7]
[367083091,1750651874999,-490.0,0.00033424,7]
[367083092,1750651875009,-490.0,0.00033424,7]
[367083093,1750651875019,-490.0,0.00033424,7]
[367083094,1750651875029,-490.0,0.00033424,7]
[367083095,1750651875038,-490.0,0.00033424,7]
[367083096,1750651875047,-490.0,0.00033424,7]
[367083097,1750651875057,-490.0,0.00033424,7]
[367083098,1750651875072,-490.0,0.00033424,7]
[367083099,1750651875082,-492.76664575,0.00033424,7]
[367083100,1750651875092,-490.0,0.00033424,7]
[367083101,1750651875103,-490.0,0.00033424,7]
[367083102,1750651875116,-490.0,0.00033424,7]
[367083103,1750651875126,-490.0,0.00033424,7]
[367083104,1750651875136,-1091.78,0.00033424,7]
[367083105,1750651875150,-490.0,0.00033424,7]
[367083106,1750651875159,-1173.88,0.00033424,7]
[367083107,1750651875169,-490.0,0.00033424,7]
[367083108,1750651875178,-490.0,0.00033424,7]
[367083109,1750651875188,-490.0,0.00033424,7]
[367083110,1750651875197,-490.0,0.00033424,7]
[367083111,1750651875209,-490.0,0.00033424,7]
[367083112,1750651875219,-490.0,0.00033424,7]
[367083113,1750651875229,-885.78,0.00033424,7]
[367083114,1750651875239,-490.0,0.00033424,7]
[367083115,1750651875249,-857.75,0.00033424,7]
[367083116,1750651875260,-1067.28,0.00033424,7]
[367083117,1750651875271,-1111.19,0.00033424,7]
[367083118,1750651875281,-490.0,0.00033424,7]
[367083119,1750651875290,-551.44,0.00033424,7]
[367083120,1750651875299,-909.59,0.00033424,7]
[367083121,1750651875309,-490.0,0.00033424,7]
[367083122,1750651875318,-402.39059455,0.00033424,7]
[367083123,1750651875327,-490.0,0.00033424,7]
[367083124,1750651875337,-490.0,0.00033424,7]
[367083125,1750651875346,-490.0,0.00033424,7]
[367083126,1750651875356,-490.0,0.00033424,7]
[367083127,1750651875365,-490.0,0.00033424,7]
[367083128,1750651875374,-490.0,0.00033424,7]
[367083129,1750651875383,-529.44,0.00033424,7]
[367083130,1750651875393,-490.0,0.00033424,7]
[367083131,1750651875402,-827.69,0.00033424,7]
[367083132,1750651875411,-490.0,0.00033424,7]
[367083133,1750651875421,-490.0,0.00033424,7]
[367083134,1750651875430,-490.0,0.00033424,7]
[367083135,1750651875439,-672.92,0.00033424,7]
[367083136,1750651875448,-490.0,0.00033424,7]
[367083137,1750651875458,-547.04,0.00033424,7]
[367083138,1750651875467,-490.0,0.00033424,7]
[367083139,1750651875476,-490.0,0.00033424,7]
[367083140,1750651875486,-513.75233737,0.00033424,7]
[367083141,1750651875495,-490.0,0.00033424,7]
[367083142,1750651875505,-490.0,0.00033424,7]
[367083143,1750651875515,-490.0,0.00033424,7]
[367083144,1750651875524,-589.91,0.00033424,7]
[367083145,1750651875533,-490.0,0.00033424,7]
[367083146,1750651875543,-490.0,0.00033424,7]
[367083147,1750651875552,-784.09,0.00033424,7]
[367083148,1750651875562,-490.0,0.00033424,7]
[367083149,1750651875571,-490.0,0.00033424,7]
[367083150,1750651875580,-490.0,0.00033424,7]
[367083151,1750651875591,-490.0,0.00033424,7]
[367083152,1750651875600,-490.0,0.00033424,7]
[367083153,1750651875610,-952.76,0.00033424,7]
[367083154,1750651875619,-490.0,0.00033424,7]
[367083155,1750651875635,-490.0,0.00033424,7]
[367083156,1750651875644,-622.94,0.00033424,7]
[367083157,1750651875654,-151.0,0.00033424,7]
[367083158,1750651875663,-490.0,0.00033424,7]
[367083159,1750651875672,-1759.37,0.00033424,7]
[367083160,1750651875682,-490.0,0.00033424,7]
[367083161,1750651875692,-1210.2,0.00033424,7]
[367083162,1750651875701,-490.0,0.00033424,7]
[367083163,1750651875711,-490.0,0.00033424,7]
[367083164,1750651875721,-490.0,0.00033424,7]
[367083165,1750651875733,-2870.387257,0.00033424,7]
[367083166,1750651875742,-490.0,0.00033424,7]
[367083167,1750651875751,-1573.26,0.00033424,7]
[367083168,1750651875761,-490.0,0.00033424,7]
[367083169,1750651875770,-151.476984,0.00033424,7]
[367083170,1750651875779,-518.58,0.00033424,7]
[367083171,1750651875788,-490.0,0.00033424,7]
[367083172,1750651875798,-490.0,0.00033424,7]
[367083173,1750651875807,-490.0,0.00033424,7]
[367083174,1750651875817,-490.0,0.00033424,7]
[367083175,1750651875826,-490.0,0.00033424,7]
[367083176,1750651875836,-490.0,0.00033424,7]
[367083177,1750651875845,-1067.54,0.00033424,7]
[367083178,1750651875855,-490.0,0.00033424,7]
[367083179,1750651875864,-490.0,0.00033424,7]
[367083180,1750651875874,-1396.319128,0.00033424,7]
[367083181,1750651875883,-802.23,0.00033424,7]
[367083182,1750651875892,-504.29058198,0.00033424,7]
[367083183,1750651875902,-675.08,0.00033424,7]
[367083184,1750651875911,-490.0,0.00033424,7]
[367083185,1750651875921,-490.0,0.00033424,7]
[367083186,1750651875931,-496.37333264,0.00033424,7]
[367083187,1750651875941,-490.0,0.00033424,7]
[367083188,1750651875951,-574.63970699,0.00033424,7]
[367083189,1750651875960,-490.0,0.00033424,7]
[367083190,1750651875970,-490.0,0.00033424,7]
[367083191,1750651875979,-490.0,0.00033424,7]
[367083192,1750651875988,-705.94,0.00033424,7]
[367083193,1750651875997,-6348.159924,0.00033424,7]
[367083194,1750651876007,-909.48,0.00033424,7]
[367083195,1750651876016,-490.0,0.00033424,7]
[367083196,1750651876025,-500.8926651,0.00033424,7]
[367083197,1750651876034,-490.0,0.00033424,7]
[367083198,1750651876043,-490.0,0.00033424,7]
[367083199,1750651876053,-687.8,0.00033424,7]
[367083200,1750651876064,-934.07,0.00033424,7]
[367083201,1750651876074,-490.0,0.00033424,7]
[367083202,1750651876084,-490.0,0.00033424,7]
[367083203,1750651876094,-490.0,0.00033424,7]
[367083204,1750651876103,-490.0,0.00033424,7]
[367083205,1750651876114,-954.17,0.00033424,7]
[367083206,1750651876123,-490.0,0.00033424,7]
[367083207,1750651876132,-496.91429781,0.00033424,7]
[367083208,1750651876142,-490.0,0.00033424,7]
[367083209,1750651876151,-490.0,0.00033424,7]
[367083210,1750651876161,-490.0,0.00033424,7]
[367083211,1750651876171,-490.0,0.00033424,7]
[367083212,1750651876180,-1653.17,0.00033424,7]
[367083213,1750651876189,-708.58,0.00033424,7]